bitfinex/quotes_BTCUSD_20230117
["timestamp","ask_amount","ask_price","bid_price","bid_amount"]
[1673917600433,0.07121147,21148.0,21147.0,0.08323396]
[1673917600620,0.07121147,21148.0,21147.0,0.38323396]
[1673917600861,0.07121147,21148.0,21147.0,0.85611396]
[1673917601346,0.07121147,21148.0,21147.0,0.08323396]
[1673917602563,0.06621147,21148.0,21147.0,0.08323396]
[1673917604064,0.06621147,21148.0,21147.0,0.00783396]
[1673917604065,1.20307604,21148.0,21147.0,0.00783396]
[1673917604313,1.87504108,21148.0,21147.0,0.00783396]
[1673917604555,2.17430677,21148.0,21147.0,0.00783396]
[1673917605053,2.45463869,21148.0,21147.0,0.00783396]
[1673917605290,2.17430677,21148.0,21147.0,0.00783396]
[1673917607789,2.17430677,21148.0,21147.0,0.00508257]
[1673917609268,2.45461883,21148.0,21147.0,0.00508257]
[1673917609499,1.68957415,21148.0,21147.0,0.00508257]
[1673917609992,2.23396223,21148.0,21147.0,0.00508257]
[1673917611770,2.15856223,21148.0,21147.0,0.00508257]
[1673917611980,1.87825017,21148.0,21147.0,0.00508257]
[1673917612247,2.15852909,21148.0,21147.0,0.00508257]
[1673917612490,2.51908246,21148.0,21147.0,0.00508257]
[1673917612742,2.23880354,21148.0,21147.0,0.00508257]
[1673917613064,1.88850468,21148.0,21147.0,0.00508257]
[1673917613242,1.8658178,21148.0,21147.0,0.00408257]
[1673917613488,1.9018178,21148.0,21147.0,0.00908257]
[1673917615732,1.9772178,21148.0,21147.0,0.00908257]
[1673917616008,2.42179936,21148.0,21147.0,0.00394253]
[1673917616233,2.72179936,21148.0,21147.0,0.00394253]
[1673917616534,3.1970727,21148.0,21147.0,0.00394253]
[1673917616839,3.04627431,21148.0,21147.0,0.00394253]
[1673917617506,3.01027431,21148.0,21143.0,0.00099314]
[1673917617741,0.56626868,21144.0,21143.0,0.00099314]
[1673917617988,2.30662168,21144.0,21143.0,0.00099314]
[1673917618227,2.30662168,21144.0,21139.0,0.00853102]
[1673917618479,0.65225573,21143.0,21139.0,0.00853102]
[1673917618720,1.267504,21142.0,21139.0,0.00853102]
[1673917618960,0.321512,21141.0,21139.0,0.00853102]
[1673917619213,0.321512,21140.0,21139.0,0.00853102]
[1673917619452,0.946066,21141.0,21139.0,0.00853102]
[1673917619719,0.321512,21140.0,21139.0,0.00853102]
[1673917620225,0.881548,21140.0,21139.0,0.00853102]
[1673917620967,0.560036,21140.0,21139.0,0.00853102]
[1673917621456,0.08742462,21140.0,21139.0,0.00853102]
[1673917621693,0.087,21140.0,21139.0,0.00853102]
[1673917622701,0.08742462,21140.0,21139.0,0.00853102]
[1673917624483,0.087,21140.0,21139.0,0.00853102]
[1673917626953,0.560036,21140.0,21139.0,0.00853102]
[1673917628963,0.087,21140.0,21139.0,0.00853102]
[1673917633451,0.881548,21140.0,21139.0,0.00853102]
[1673917634006,1.354584,21140.0,21139.0,0.00853102]
[1673917634268,1.504584,21140.0,21139.0,0.00853102]
[1673917634811,1.93986046,21140.0,21139.0,0.10853102]
[1673917635110,2.25220337,21140.0,21139.0,0.10853102]
[1673917635370,2.39222115,21140.0,21139.0,0.10853102]
[1673917635881,2.51530315,21140.0,21139.0,0.10853102]
[1673917636139,2.74725223,21140.0,21139.0,0.07348235]
[1673917636419,2.82795224,21140.0,21139.0,0.07348235]
[1673917636661,2.54776556,21140.0,21139.0,0.07348235]
[1673917636935,2.39422742,21140.0,21139.0,0.07348235]
[1673917637493,1.64267081,21140.0,21139.0,0.07348235]
[1673917637774,1.58052238,21140.0,21139.0,0.07348235]
[1673917638303,1.48852238,21140.0,21139.0,0.07348235]
[1673917638797,1.58052238,21140.0,21139.0,0.07348235]
[1673917639054,1.51670863,21140.0,21139.0,0.07348235]
[1673917639312,2.37452806,21140.0,21139.0,0.07348235]
[1673917639572,2.58439024,21140.0,21139.0,0.07348235]
[1673917640358,2.88427353,21140.0,21139.0,0.07348235]
[1673917641746,2.64457649,21140.0,21139.0,0.07348235]
[1673917642003,3.23502935,21140.0,21139.0,0.03377479]
[1673917642268,3.23502935,21140.0,21139.0,7.9e-07]
[1673917642269,3.52304436,21140.0,21139.0,7.9e-07]
[1673917642563,3.43129396,21140.0,21138.0,0.00863517]
[1673917642828,2.13648149,21139.0,21138.0,0.00863517]
[1673917643110,3.08259949,21139.0,21138.0,0.00863517]
[1673917643367,3.38259949,21139.0,21138.0,0.00863517]
[1673917643647,3.08259949,21139.0,21138.0,0.00863517]
[1673917643905,3.24284935,21139.0,21138.0,0.00863517]
[1673917644168,3.52233601,21139.0,21138.0,0.00863517]
[1673917644418,3.38264065,21139.0,21138.0,0.00863517]
[1673917644942,3.33384935,21139.0,21138.0,0.00863517]
[1673917645253,3.61343395,21139.0,21138.0,0.00863517]
[1673917645996,3.61530516,21139.0,21138.0,0.00863517]
[1673917646255,3.40559222,21139.0,21138.0,0.00863517]
[1673917646576,3.61526404,21139.0,21138.0,0.00863517]
[1673917646837,3.25959234,21139.0,21138.0,0.00863517]
[1673917647100,2.68010568,21139.0,21138.0,0.00863517]
[1673917647365,1.79258463,21139.0,21138.0,0.00863517]
[1673917647621,1.58291281,21139.0,21138.0,0.00863517]
[1673917647900,1.44313,21139.0,21138.0,0.00863517]
[1673917648458,1.35863,21139.0,21138.0,0.00863517]
[1673917648703,1.5125603,21139.0,21138.0,0.00863517]
[1673917650217,1.72824311,21139.0,21138.0,0.00863517]
[1673917650494,1.93791493,21139.0,21138.0,0.00863517]
[1673917650971,1.72824311,21139.0,21138.0,0.00863517]
[1673917651994,1.93791493,21139.0,21138.0,0.00863517]
[1673917652279,1.78398463,21139.0,21138.0,0.00863517]
[1673917652522,2.35234744,21139.0,21138.0,0.0040236]
[1673917652815,3.18522083,21139.0,21138.0,0.0040236]
[1673917653109,2.52644961,21139.0,21138.0,0.0040236]
[1673917653373,1.56183709,21139.0,21138.0,0.0040236]
[1673917653636,1.70171347,21139.0,21138.0,0.0040236]
[1673917654146,1.56183709,21139.0,21138.0,0.0040236]
[1673917654453,1.65383709,21139.0,21138.0,0.0040236]
[1673917654704,1.56183709,21139.0,21138.0,0.0040236]
[1673917654974,1.55333709,21139.0,21138.0,0.0040236]
[1673917655229,1.69326839,21139.0,21138.0,0.0040236]
[1673917655752,1.92507443,21139.0,21138.0,0.0040236]
[1673917656019,1.92507443,21139.0,21138.0,0.00282282]
[1673917656577,1.64533709,21139.0,21138.0,0.00282282]
[1673917657350,1.7853095,21139.0,21138.0,0.00282282]
[1673917657629,1.57550241,21139.0,21138.0,0.00282282]
[1673917658155,1.49960241,21139.0,21138.0,0.00282282]
[1673917658605,1.35963,21139.0,21138.0,0.00282282]
[1673917662002,1.36005462,21139.0,21138.0,0.00282282]
[1673917662879,1.57641163,21139.0,21138.0,0.00282282]
[1673917663123,1.71638404,21139.0,21138.0,0.00282282]
[1673917663388,1.36005462,21139.0,21138.0,0.00282282]
[1673917664194,1.50002703,21139.0,21138.0,0.00282282]
[1673917668951,1.70983412,21139.0,21138.0,0.00282282]
[1673917669482,1.50002703,21139.0,21138.0,0.00282282]
[1673917670580,1.70983412,21139.0,21138.0,0.00282282]
[1673917672475,1.56986171,21139.0,21138.0,0.00282282]
[1673917672735,1.84959905,21139.0,21138.0,0.00282282]
[1673917673012,1.09680271,21139.0,21138.0,0.00282282]
[1673917673268,1.09680271,21139.0,21138.0,0.07822282]
[1673917673269,0.565059,21139.0,21138.0,0.07822282]
[1673917673555,0.092,21139.0,21138.0,0.07822282]
[1673917674354,1.16705091,21140.0,21138.0,0.00282282]
[1673917674355,1.16704991,21140.0,21138.0,0.00282282]
[1673917674606,0.877571,21139.0,21138.0,0.00382282]
[1673917675148,1.0178209,21139.0,21138.0,0.00382282]
[1673917675401,0.794571,21139.0,21138.0,0.00282282]
[1673917675668,1.4078799,21139.0,21138.0,0.00382282]
[1673917676748,1.40830452,21139.0,21138.0,0.00371448]
[1673917677056,1.49130452,21139.0,21138.0,0.00371448]
[1673917678680,1.35105462,21139.0,21138.0,0.00371448]
[1673917678937,1.49130452,21139.0,21138.0,0.00371448]
[1673917679194,0.877571,21139.0,21138.0,0.00371448]
[1673917679449,0.87799562,21139.0,21138.0,0.00371448]
[1673917680295,1.35105462,21139.0,21138.0,0.00371448]
[1673917680569,1.93549057,21139.0,21138.0,0.00371448]
[1673917680819,1.49130452,21139.0,21138.0,0.00371448]
[1673917681338,1.4908799,21139.0,21138.0,0.00371448]
[1673917681605,1.35063,21139.0,21138.0,0.00371448]
[1673917682111,1.4908799,21139.0,21138.0,0.00371448]
[1673917682354,1.35063,21139.0,21138.0,0.00371448]
[1673917682589,1.4908799,21139.0,21138.0,0.00371448]
[1673917684352,1.06870251,21139.0,21138.0,0.00371448]
[1673917685364,1.39021451,21139.0,21138.0,0.00371448]
[1673917685598,0.91715551,21139.0,21138.0,0.00371448]
[1673917685849,0.12258451,21139.0,21138.0,0.00371448]
[1673917687047,0.12258451,21139.0,21138.0,1.10067648]
[1673917687308,0.12258451,21139.0,21138.0,1.42218848]
[1673917687564,0.12258451,21139.0,21138.0,1.72218848]
[1673917690883,0.12258451,21139.0,21138.0,1.42218848]
[1673917691206,0.31373508,21139.0,21138.0,0.40062648]
[1673917691410,0.12258451,21139.0,21138.0,0.00371448]
[1673917692990,0.12300913,21139.0,21138.0,0.00371448]
[1673917693782,1.04658203,21139.0,21138.0,0.00371448]
[1673917694050,1.18683193,21139.0,21138.0,0.00371448]
[1673917694586,2.08299537,21139.0,21138.0,0.00371448]
[1673917694853,1.80325803,21139.0,21138.0,0.00264346]
[1673917695149,2.15892973,21139.0,21138.0,0.00264346]
[1673917695642,1.45377508,21139.0,21138.0,0.00264346]
[1673917695916,1.37077508,21139.0,21138.0,0.00164346]
[1673917696158,2.28508675,21139.0,21138.0,0.00164346]
[1673917696676,2.19408675,21139.0,21138.0,0.00164346]
[1673917696943,2.28508675,21139.0,21138.0,0.00164346]
[1673917697238,2.29050578,21139.0,21138.0,0.00164346]
[1673917697498,0.08321997,21137.0,21136.0,0.00760763]
[1673917697807,1.99801705,21137.0,21136.0,0.00760763]
[1673917698077,2.35273637,21137.0,21136.0,0.00760763]
[1673917698348,2.42813637,21137.0,21136.0,0.00760763]
[1673917698607,2.82933637,21137.0,21136.0,0.00760763]
[1673917699135,3.26936242,21137.0,21136.0,0.00760763]
[1673917699402,3.2693625,21137.0,21136.0,0.00760763]
[1673917699668,2.82933637,21137.0,21136.0,0.00760763]
[1673917699935,2.92033637,21137.0,21136.0,0.00760763]
[1673917700640,3.27016622,21137.0,21136.0,0.00760763]
[1673917700641,3.94718837,21137.0,21136.0,0.00760763]
[1673917700940,3.66727022,21137.0,21136.0,0.00760763]
[1673917701274,3.59245656,21137.0,21136.0,0.00760763]
[1673917701513,4.00400175,21137.0,21136.0,0.00760763]
[1673917701771,3.7451719,21137.0,21136.0,0.00760763]
[1673917702018,4.09492225,21137.0,21136.0,0.00760763]
[1673917702749,3.7451719,21137.0,21136.0,0.00760763]
[1673917702989,4.0949364,21137.0,21136.0,0.00760763]
[1673917703943,3.8210719,21137.0,21136.0,0.00760763]
[1673917704696,4.17071278,21137.0,21136.0,0.00760763]
[1673917704930,3.8210719,21137.0,21136.0,0.00760763]
[1673917705959,4.17062648,21137.0,21136.0,0.00760763]
[1673917706229,3.39667563,21137.0,21136.0,0.00760763]
[1673917706491,3.35524031,21137.0,21136.0,0.00760763]
[1673917706752,2.92433783,21137.0,21136.0,0.00760763]
[1673917707015,3.06415603,21137.0,21136.0,0.00760763]
[1673917707288,2.8459462,21137.0,21136.0,0.00760763]
[1673917707549,2.233024,21137.0,21136.0,0.00760763]
[1673917707803,1.831824,21137.0,21136.0,0.00760763]
[1673917708307,1.35872,21137.0,21136.0,0.00760763]
[1673917709589,1.87475882,21137.0,21136.0,0.00760763]
[1673917709839,1.92403231,21137.0,21136.0,0.00760763]
[1673917710092,1.64442983,21137.0,21136.0,0.00760763]
[1673917710346,1.78422831,21137.0,21136.0,0.00760763]
[1673917711398,2.97535198,21137.0,21136.0,0.00360995]
[1673917711650,3.16985167,21137.0,21136.0,0.00360995]
[1673917712723,3.64295567,21137.0,21136.0,0.00360995]
[1673917713498,3.45674205,21137.0,21136.0,0.00360995]
[1673917713715,3.15674205,21137.0,21136.0,0.00360995]
[1673917714003,2.27173572,21137.0,21136.0,0.00360995]
[1673917714258,2.48129599,21137.0,21136.0,0.00360995]
[1673917714506,2.27173572,21137.0,21136.0,0.00360995]
[1673917714801,0.15,21136.0,21134.0,0.00971068]
[1673917715069,1.267808,21135.0,21134.0,0.00971068]
[1673917715355,0.946296,21135.0,21134.0,0.00971068]
[1673917715595,1.267808,21135.0,21134.0,0.00971068]
[1673917716294,1.48593147,21135.0,21134.0,0.00971068]
[1673917717096,1.57593147,21135.0,21134.0,0.00971068]
[1673917717353,1.79164559,21135.0,21134.0,0.00971068]
[1673917717616,2.07721916,21135.0,21134.0,0.00971068]
[1673917718657,1.86764559,21135.0,21134.0,0.00971068]
[1673917718915,2.37764378,21135.0,21134.0,0.00971068]
[1673917719192,2.66248713,21135.0,21134.0,0.00971068]
[1673917719440,3.1972845,21135.0,21134.0,0.00971068]
[1673917720512,3.20647278,21135.0,21134.0,6.8e-07]
[1673917720755,0.00616998,21133.0,21130.0,0.00978134]
[1673917721049,0.152,21131.0,21130.0,0.00978134]
[1673917721289,2.55509091,21131.0,21130.0,0.00978134]
[1673917721560,0.15,21130.0,21129.0,0.00400735]
[1673917721835,3.18997591,21130.0,21129.0,0.00400735]
[1673917722098,3.67257808,21130.0,21129.0,0.00400735]
[1673917722381,3.70314265,21130.0,21129.0,0.00400735]
[1673917722642,3.56360596,21130.0,21129.0,0.00400735]
[1673917722894,3.93487808,21130.0,21129.0,0.00400735]
[1673917723152,3.93487808,21130.0,21128.0,0.00903401]
[1673917723153,0.4428,21129.0,21128.0,0.00903401]
[1673917723412,0.15,21128.0,21127.0,0.00882296]
[1673917723862,2.84146435,21128.0,21127.0,0.00882296]
[1673917724139,2.71044301,21128.0,21127.0,0.00882296]
[1673917724939,2.71044301,21128.0,21125.0,0.05267981]
[1673917724940,0.15,21127.0,21125.0,0.05267981]
[1673917725198,3.02922731,21126.0,21125.0,0.05267981]
[1673917725459,3.02965193,21126.0,21125.0,0.05267981]
[1673917726002,1.90248662,21126.0,21125.0,0.05267981]
[1673917726355,1.741562,21126.0,21125.0,0.17236886]
[1673917726609,1.51205,21126.0,21125.0,0.05267981]
[1673917726871,1.741562,21126.0,21125.0,0.05267981]
[1673917727136,1.87398511,21126.0,21125.0,0.05267981]
[1673917727397,1.95040973,21126.0,21125.0,0.05267981]
[1673917727669,2.02640973,21126.0,21125.0,0.05267981]
[1673917727936,2.03490973,21126.0,21125.0,0.05267981]
[1673917728196,2.71710973,21126.0,21125.0,0.05267981]
[1673917728472,3.07182905,21126.0,21125.0,0.05267981]
[1673917728741,2.97982905,21126.0,21125.0,0.05267981]
[1673917728995,2.67982905,21126.0,21125.0,0.05267981]
[1673917729274,1.90308662,21126.0,21125.0,0.17236886]
[1673917729538,1.81858662,21126.0,21125.0,0.05267981]
[1673917729810,1.98658662,21126.0,21125.0,0.05267981]
[1673917730068,1.89458662,21126.0,21125.0,0.05267981]
[1673917730290,2.61867792,21126.0,21125.0,0.05267981]
[1673917730912,3.01067792,21126.0,21125.0,0.05267981]
[1673917731174,2.91867792,21126.0,21125.0,0.05267981]
[1673917731434,2.71067792,21126.0,21125.0,0.05267981]
[1673917731886,2.36793662,21126.0,21125.0,0.05267981]
[1673917731887,2.367512,21126.0,21125.0,0.05267981]
[1673917732163,1.51205,21126.0,21125.0,0.05267981]
[1673917732418,1.741562,21126.0,21125.0,0.05267981]
[1673917732679,1.51205,21126.0,21125.0,0.05267981]
[1673917732974,1.892767,21126.0,21125.0,0.05267981]
[1673917733244,1.817562,21126.0,21125.0,0.05267981]
[1673917733774,1.908562,21126.0,21125.0,0.05267981]
[1673917734033,1.741562,21126.0,21125.0,0.05267981]
[1673917734300,1.832562,21126.0,21125.0,0.05267981]
[1673917734557,1.741562,21126.0,21125.0,0.05267981]
[1673917734843,1.51105,21126.0,21125.0,0.05267981]
[1673917735108,1.42005,21126.0,21125.0,0.05267981]
[1673917735372,1.51105,21126.0,21125.0,0.05267981]
[1673917735645,0.9467,21126.0,21125.0,0.05267981]
[1673917735904,1.0377,21126.0,21125.0,0.05267981]
[1673917736188,0.473328,21127.0,21125.0,0.05267981]
[1673917736710,0.47332,21128.0,21125.0,0.05267981]
[1673917737324,0.94666,21127.0,21125.0,0.05267981]
[1673917737593,0.321512,21126.0,21125.0,0.05267981]
[1673917737846,1.268212,21126.0,21125.0,0.05267981]
[1673917738376,0.564333,21127.0,21125.0,0.17236886]
[1673917738642,0.473305,21128.0,21126.0,0.321512]
[1673917738906,0.473305,21128.0,21125.0,0.05267981]
[1673917738907,0.091,21126.0,21125.0,0.05267981]
[1673917739162,0.473328,21127.0,21125.0,0.05267981]
[1673917739420,0.482328,21127.0,21125.0,0.05267981]
[1673917739721,0.473328,21127.0,21125.0,0.05267981]
[1673917739991,0.009,21126.0,21125.0,0.05267981]
[1673917740245,0.473303,21129.0,21125.0,0.37419181]
[1673917740511,0.482329,21127.0,21125.0,0.17236886]
[1673917740758,0.482329,21127.0,21125.0,0.05267981]
[1673917741316,0.009,21127.0,21125.0,0.05267981]
[1673917741576,1.116853,21130.0,21126.0,0.397512]
[1673917741823,1.116853,21130.0,21127.0,0.123706]
[1673917742082,1.116853,21130.0,21128.0,0.321476]
[1673917742372,1.116853,21130.0,21127.0,0.11968905]
[1673917742690,1.27628872,21130.0,21126.0,0.076]
[1673917742938,1.70801467,21130.0,21125.0,0.05267981]
[1673917743197,1.70801467,21130.0,21125.0,0.12807981]
[1673917743198,0.19072595,21129.0,21125.0,0.12807981]
[1673917743451,0.94662,21128.0,21125.0,0.12807981]
[1673917743928,0.00042462,21127.0,21125.0,0.12807981]
[1673917744188,0.47376562,21127.0,21125.0,0.12807981]
[1673917744444,0.94709262,21127.0,21125.0,0.12807981]
[1673917744995,0.946668,21127.0,21125.0,0.12807981]
[1673917745240,0.95409262,21127.0,21125.0,0.12807981]
[1673917745537,0.47192019,21125.0,21124.0,0.11968905]
[1673917745844,0.47192019,21125.0,21124.0,1.720185]
[1673917746127,0.47192019,21125.0,21124.0,2.19358]
[1673917747474,0.48092019,21125.0,21124.0,2.19358]
[1673917748279,0.47192019,21125.0,21124.0,2.19358]
[1673917748557,0.009,21125.0,21124.0,1.72165981]
[1673917748845,0.473275,21130.0,21125.0,0.15]
[1673917749108,0.00616998,21133.0,21129.0,0.076]
[1673917749396,0.47937898,21133.0,21132.0,0.0754]
[1673917749663,0.47937898,21133.0,21132.0,0.11968905]
[1673917749917,1.10257198,21133.0,21127.0,0.692108]
[1673917750226,0.19072595,21132.0,21128.0,0.0759]
[1673917750489,0.01,21130.0,21128.0,0.0759]
[1673917750746,0.473265,21130.0,21128.0,0.0759]
[1673917751266,0.473242,21131.0,21128.0,0.0759]
[1673917751526,0.091,21132.0,21130.0,0.076]
[1673917751787,0.95259298,21133.0,21131.0,0.076]
[1673917752069,0.47938098,21133.0,21131.0,0.19568905]
[1673917752320,0.00616998,21133.0,21131.0,0.19568905]
[1673917752573,0.00616998,21133.0,21131.0,0.076]
[1673917753139,0.0065946,21133.0,21131.0,0.076]
[1673917753676,0.0975946,21133.0,21131.0,0.076]
[1673917753940,0.09716998,21133.0,21131.0,0.076]
[1673917754208,0.17716998,21133.0,21131.0,0.076]
[1673917754469,0.17716998,21133.0,21132.0,0.076]
[1673917755281,0.00616998,21133.0,21132.0,0.076]
[1673917755586,0.00616998,21133.0,21131.0,0.0754]
[1673917755847,0.47936298,21133.0,21131.0,0.0754]
[1673917756070,0.57036298,21133.0,21131.0,0.0754]
[1673917756334,0.47936298,21133.0,21131.0,0.0754]
[1673917756587,0.55936298,21133.0,21131.0,0.0754]
[1673917757430,1.03255598,21133.0,21131.0,0.0754]
[1673917757682,0.00042462,21132.0,21129.0,0.548468]
[1673917757971,0.66436757,21132.0,21129.0,0.548468]
[1673917758271,0.47364162,21132.0,21129.0,0.548468]
[1673917758523,0.47364162,21132.0,21130.0,0.273237]
[1673917758781,1.12747588,21132.0,21129.0,0.0752]
[1673917759031,0.77938298,21133.0,21131.0,0.0754]
[1673917759300,0.77938298,21133.0,21132.0,0.273213]
[1673917759601,0.77938298,21133.0,21131.0,0.0754]
[1673917759863,0.08,21132.0,21131.0,0.0754]
[1673917760144,0.08,21132.0,21131.0,1.219696]
[1673917760402,0.08,21132.0,21131.0,0.897861]
[1673917760909,0.3,21133.0,21131.0,0.897861]
[1673917761171,0.007,21132.0,21131.0,0.473238]
[1673917761442,0.007,21132.0,21131.0,0.897862]
[1673917761700,0.007,21132.0,21131.0,1.6711]
[1673917765395,0.00742462,21132.0,21131.0,1.3711]
[1673917765641,0.007,21132.0,21131.0,1.3711]
[1673917770002,0.007,21132.0,21131.0,1.6711]
[1673917771393,0.007,21132.0,21131.0,1.9596]
[1673917771917,0.00693092,21132.0,21131.0,1.9596]
[1673917773228,0.00693092,21132.0,21131.0,1.596]
[1673917779145,0.00735554,21132.0,21131.0,1.296]
[1673917779414,0.00693092,21132.0,21131.0,1.296]
[1673917779692,0.00693092,21132.0,21131.0,0.822762]
[1673917780743,0.00693092,21132.0,21131.0,0.473238]
[1673917781282,0.00693092,21132.0,21131.0,0.746463]
[1673917781510,0.00693092,21132.0,21131.0,0.473238]
[1673917782285,0.00693092,21132.0,21131.0,0.746463]
[1673917783169,0.00735554,21132.0,21131.0,0.746463]
[1673917783664,0.00693092,21132.0,21131.0,0.746463]
[1673917783918,0.00693092,21132.0,21131.0,0.473238]
[1673917784178,0.00693092,21132.0,21131.0,0.746463]
[1673917785240,0.00693092,21132.0,21131.0,0.473238]
[1673917785497,0.00693092,21132.0,21131.0,0.746463]
[1673917785757,0.00693092,21132.0,21128.0,0.21687996]
[1673917786007,0.19765687,21132.0,21129.0,1.89336967]
[1673917786261,0.00693092,21132.0,21129.0,0.94654]
[1673917786516,0.00735554,21132.0,21129.0,0.94654]
[1673917787061,1.14451449,21132.0,21128.0,0.548685]
[1673917787505,1.13758357,21132.0,21128.0,0.548685]
[1673917787758,0.19072595,21131.0,21125.0,0.35369559]
[1673917788010,0.51233695,21130.0,21126.0,0.94695581]
[1673917788271,0.00042462,21129.0,21126.0,0.94695581]
[1673917788526,0.47371462,21129.0,21125.0,0.14147996]
[1673917788802,0.757157,21129.0,21125.0,0.14147996]
[1673917789035,0.757157,21129.0,21126.0,0.94694532]
[1673917789279,0.47371462,21129.0,21125.0,0.14147996]
[1673917789601,0.66444057,21129.0,21125.0,0.14147996]
[1673917789792,0.66444057,21129.0,21124.0,3.53237459]
[1673917789793,0.67344057,21129.0,21124.0,3.53237459]
[1673917790050,0.67344057,21129.0,21125.0,1.08843837]
[1673917790300,0.48271462,21129.0,21126.0,0.2733]
[1673917790556,0.48271462,21129.0,21125.0,0.61484996]
[1673917790840,0.95599762,21129.0,21125.0,0.61484996]
[1673917791601,0.94699762,21129.0,21126.0,0.273301]
[1673917791850,0.95599762,21129.0,21125.0,0.61484996]
[1673917792119,1.13772357,21129.0,21125.0,0.47337]
[1673917792366,0.95599762,21129.0,21125.0,0.47337]
[1673917792620,0.95599762,21129.0,21126.0,0.273303]
[1673917792878,0.95599762,21129.0,21125.0,0.47337]
[1673917793126,0.95599762,21129.0,21125.0,0.61484996]
[1673917793390,1.14672357,21129.0,21125.0,0.61484996]
[1673917793641,1.14672357,21129.0,21125.0,0.47337]
[1673917794175,0.95599762,21129.0,21125.0,0.47337]
[1673917795453,1.14672357,21129.0,21125.0,0.47337]
[1673917795711,1.14672357,21129.0,21124.0,0.54938]
[1673917796009,6.156e-05,21124.0,21123.0,0.35369559]
[1673917796219,0.27314751,21124.0,21122.0,0.0130985]
[1673917796487,0.19072595,21123.0,21122.0,0.0130985]
[1673917796734,0.08242156,21124.0,21122.0,0.0130985]
[1673917796985,6.156e-05,21124.0,21122.0,0.0130985]
[1673917797498,0.0558905,21124.0,21122.0,0.0130985]
[1673917797755,0.009,21123.0,21122.0,0.0130985]
[1673917798263,0.09136,21123.0,21122.0,0.2864645]
[1673917798542,6.156e-05,21124.0,21122.0,0.0130985]
[1673917798780,0.08006156,21124.0,21122.0,0.0130985]
[1673917799103,0.47346056,21124.0,21122.0,0.0130985]
[1673917799328,0.08936,21123.0,21122.0,0.0130985]
[1673917799579,1.029194,21123.0,21122.0,0.0130985]
[1673917799873,1.02961862,21123.0,21122.0,0.0130985]
[1673917800977,0.00042462,21123.0,21122.0,0.0130985]
[1673917801233,0.007,21123.0,21122.0,0.2864645]
[1673917801486,0.006729,21123.0,21122.0,0.2864655]
[1673917801741,0.006729,21123.0,21122.0,0.0130985]
[1673917801988,0.20115207,21123.0,21122.0,0.0130985]
[1673917802246,0.20082901,21123.0,21122.0,0.0130985]
[1673917802751,0.19410001,21123.0,21122.0,0.0130985]
[1673917803023,0.20442307,21123.0,21122.0,0.0130985]
[1673917803256,0.20410001,21123.0,21122.0,0.0130985]
[1673917804014,0.20410001,21123.0,21122.0,0.2864655]
[1673917805003,0.20442307,21123.0,21122.0,0.0130985]
[1673917805254,0.67784007,21123.0,21122.0,0.0130985]
[1673917806034,0.86856602,21123.0,21122.0,0.0130985]
[1673917806289,1.53836807,21123.0,21122.0,0.0130985]
[1673917806550,1.54536807,21123.0,21122.0,0.0130985]
[1673917806839,1.53836807,21123.0,21122.0,0.0130985]
[1673917807101,1.72936807,21123.0,21122.0,0.0130985]
[1673917807359,1.63836807,21123.0,21122.0,0.0130985]
[1673917807628,1.72936807,21123.0,21122.0,0.0130985]
[1673917807905,1.72936807,21123.0,21122.0,9.85e-05]
[1673917807906,1.89093797,21123.0,21122.0,9.85e-05]
[1673917808687,1.79993797,21123.0,21122.0,9.85e-05]
[1673917809205,1.72286807,21123.0,21122.0,9.85e-05]
[1673917810329,2.07640975,21123.0,21122.0,9.85e-05]
[1673917810503,1.72286807,21123.0,21122.0,9.85e-05]
[1673917811044,1.66204501,21123.0,21122.0,9.85e-05]
[1673917811299,1.57104501,21123.0,21122.0,9.85e-05]
[1673917811554,1.66204501,21123.0,21122.0,9.85e-05]
[1673917811822,1.57104501,21123.0,21122.0,9.85e-05]
[1673917812085,1.65354501,21123.0,21122.0,0.11978755]
[1673917812344,0.38510001,21123.0,21122.0,9.85e-05]
[1673917812863,0.29410001,21123.0,21122.0,0.2734655]
[1673917813113,0.38510001,21123.0,21122.0,0.2734655]
[1673917813628,0.29410001,21123.0,21122.0,9.85e-05]
[1673917813882,0.38510001,21123.0,21122.0,9.85e-05]
[1673917814141,0.38510001,21123.0,21122.0,0.2734655]
[1673917814927,0.38542307,21123.0,21122.0,9.85e-05]
[1673917815185,0.38510001,21123.0,21122.0,0.2734655]
[1673917815508,0.38510001,21123.0,21122.0,0.1734655]
[1673917816768,0.38510001,21123.0,21122.0,1.4957455]
[1673917817860,0.29410001,21123.0,21122.0,1.4957455]
[1673917818297,0.29410001,21123.0,21122.0,1.5715455]
[1673917818574,0.30210001,21123.0,21122.0,1.5795455]
[1673917818831,0.29410001,21123.0,21122.0,1.5715455]
[1673917819410,6.156e-05,21124.0,21123.0,0.34719271]
[1673917819669,6.156e-05,21124.0,21123.0,1.73482671]
[1673917819954,6.156e-05,21124.0,21123.0,2.6851804]
[1673917820797,6.156e-05,21124.0,21123.0,3.63212327]
[1673917821064,6.156e-05,21124.0,21123.0,3.77360323]
[1673917821336,6.156e-05,21124.0,21123.0,3.63212327]
[1673917821596,0.00706156,21124.0,21123.0,3.64812327]
[1673917821858,6.156e-05,21124.0,21123.0,3.63212327]
[1673917822200,0.00706156,21124.0,21123.0,3.78960323]
[1673917822450,0.00706156,21124.0,21123.0,4.4864076]
[1673917822707,0.00706156,21124.0,21123.0,4.4864092]
[1673917822958,0.00706156,21124.0,21123.0,3.78960323]
[1673917823220,0.1,21128.0,21124.0,0.00706]
[1673917823477,0.1,21128.0,21127.0,0.4408]
[1673917823740,0.1,21128.0,21127.0,2.81059369]
[1673917824002,0.1,21128.0,21127.0,3.75753656]
[1673917824258,0.1,21128.0,21127.0,2.81059369]
[1673917824510,0.1,21128.0,21127.0,2.54429369]
[1673917824761,0.106,21128.0,21127.0,2.54429369]
[1673917825263,0.1,21128.0,21127.0,2.52229369]
[1673917825524,0.1,21128.0,21127.0,2.54429369]
[1673917825780,0.1,21128.0,21127.0,3.46910116]
[1673917826126,0.1,21128.0,21127.0,3.49110116]
[1673917826316,0.106,21128.0,21127.0,2.54429369]
[1673917826595,0.106,21128.0,21127.0,3.01762069]
[1673917828388,0.106,21128.0,21127.0,3.96441173]
[1673917828644,0.106,21128.0,21127.0,4.95842662]
[1673917828905,0.106,21128.0,21127.0,5.58295833]
[1673917829164,0.106,21128.0,21127.0,5.44168382]
[1673917829421,0.106,21128.0,21127.0,5.44168414]
[1673917829690,0.106,21128.0,21127.0,4.25321173]
[1673917829970,0.106,21128.0,21127.0,3.96381173]
[1673917830479,0.106,21128.0,21127.0,3.9637772]
[1673917830723,0.106,21128.0,21127.0,4.10492394]
[1673917831281,0.106,21128.0,21127.0,4.31673963]
[1673917831511,0.106,21128.0,21127.0,4.45711268]
[1673917831781,0.106,21128.0,21127.0,4.67742837]